bitfinex-derivatives/quotes_BTCF0:USTF0_20250930
["timestamp","ask_amount","ask_price","bid_price","bid_amount"]
[1759241631409,0.0883107,113190.0,113180.0,0.48075357]
[1759241632113,1.27289267,113200.0,113190.0,0.0883107]
[1759241632409,0.43173267,113200.0,113190.0,0.54285393]
[1759241632707,0.43213267,113200.0,113190.0,0.574494]
[1759241632913,0.3612,113200.0,113190.0,0.62195411]
[1759241633114,0.3608,113200.0,113190.0,0.62195411]
[1759241633304,0.3612,113200.0,113190.0,0.59031404]
[1759241633801,0.43242225,113200.0,113190.0,0.59031404]
[1759241634612,0.43242225,113200.0,113190.0,0.13577081]
[1759241635314,0.43242225,113200.0,113190.0,0.59031404]
[1759241635913,0.52072525,113200.0,113190.0,0.13577081]
[1759241636414,0.43242225,113200.0,113190.0,0.13577081]
[1759241636621,0.52072525,113200.0,113190.0,0.13577081]
[1759241637413,0.92072525,113200.0,113190.0,0.04746011]
[1759241637618,0.92072525,113200.0,113190.0,0.13577091]
[1759241638015,0.92072525,113200.0,113190.0,0.13576961]
[1759241638016,1.76188525,113200.0,113190.0,0.13576961]
[1759241638209,1.76188525,113200.0,113190.0,0.04746011]
[1759241638412,0.92072525,113200.0,113190.0,0.07916111]
[1759241638715,0.92072525,113200.0,113190.0,0.1200111]
[1759241639219,1.76188525,113200.0,113190.0,0.16747121]
[1759241639614,0.83242225,113200.0,113190.0,0.16747121]
[1759241639921,0.43242225,113200.0,113190.0,0.62201444]
[1759241640113,0.43242225,113200.0,113190.0,0.59031344]
[1759241640314,0.43242225,113200.0,113190.0,0.54285333]
[1759241640618,0.07122225,113200.0,113190.0,0.60627157]
[1759241640815,0.0004,113200.0,113190.0,0.60627157]
[1759241641226,0.0004,113200.0,113190.0,0.15172834]
[1759241642116,0.0004,113200.0,113190.0,0.60627157]
[1759241642319,0.0887025,113200.0,113190.0,0.60627157]
[1759241642510,0.4495025,113200.0,113190.0,0.15172834]
[1759241642907,0.4495025,113200.0,113190.0,0.0883101]
[1759241643215,0.91917581,113200.0,113190.0,0.135875]
[1759241644224,0.83086841,113200.0,113190.0,0.135875]
[1759241644418,1.31118841,113200.0,113190.0,0.135875]
[1759241644720,0.07006841,113200.0,113190.0,1.00627177]
[1759241645020,0.06966841,113200.0,113190.0,1.00627177]
[1759241645221,0.0004,113200.0,113190.0,1.00627177]
[1759241645525,1.20192,113210.0,113200.0,0.0883031]
[1759241645717,0.3616,113210.0,113200.0,0.13586444]
[1759241646021,0.3608,113210.0,113200.0,0.13586444]
[1759241646216,0.3612,113210.0,113200.0,0.13586444]
[1759241646419,0.3612,113210.0,113200.0,0.54284633]
[1759241647221,0.4494954,113210.0,113200.0,0.54284633]
[1759241647521,0.3612,113210.0,113200.0,0.0883031]
[1759241648721,0.4494951,113210.0,113200.0,0.0883031]
[1759241648919,0.4494951,113210.0,113200.0,0.13587392]
[1759241650217,0.4494951,113210.0,113200.0,0.04757082]
[1759241650525,1.30403833,113210.0,113200.0,0.03171589]
[1759241651626,0.0883031,113200.0,113190.0,0.16759741]
[1759241651822,1.2901031,113200.0,113190.0,0.16759741]
[1759241652122,1.74464633,113200.0,113190.0,0.03171589]
[1759241652315,2.21387684,113200.0,113190.0,0.07928671]
[1759241652516,0.0883115,113190.0,113180.0,0.16760301]
[1759241652716,0.4491115,113190.0,113180.0,0.16760301]
[1759241653121,0.3608,113190.0,113180.0,0.16760301]
[1759241653320,1.27099051,113200.0,113190.0,0.0883111]
[1759241653525,1.20176,113210.0,113200.0,0.0883033]
[1759241653719,1.6508559,113210.0,113200.0,0.07928412]
[1759241653917,1.6508559,113210.0,113200.0,0.03171365]
[1759241654117,2.50619913,113210.0,113200.0,0.03171365]
[1759241654322,0.0883033,113200.0,113190.0,0.12002215]
[1759241654523,0.51976758,113200.0,113190.0,0.12002215]
[1759241655426,1.36072758,113200.0,113190.0,0.16759262]
[1759241655629,0.48776758,113200.0,113190.0,0.16759262]
[1759241655825,1.32872758,113200.0,113190.0,0.16759262]
[1759241656228,1.32872758,113200.0,113190.0,0.13587897]
[1759241656432,1.34272758,113200.0,113190.0,0.13687897]
[1759241656625,1.34272758,113200.0,113190.0,0.15587897]
[1759241656819,1.34272758,113200.0,113190.0,0.06757047]
[1759241657131,1.34268758,113200.0,113190.0,0.18760168]
[1759241657816,1.34268758,113200.0,113190.0,0.15588207]
[1759241658326,1.34308758,113200.0,113190.0,0.15588207]
[1759241659021,1.34304758,113200.0,113190.0,0.15588207]
[1759241659222,0.50216758,113200.0,113190.0,0.15588207]
[1759241659529,1.34304758,113200.0,113190.0,0.15588207]
[1759241659828,0.14136758,113200.0,113190.0,0.15588207]
[1759241660129,1.34264758,113200.0,113190.0,0.15588207]
[1759241660331,1.34304758,113200.0,113190.0,0.15588207]
[1759241660626,0.44586428,113200.0,113190.0,0.96285483]
[1759241660822,0.44586428,113200.0,113190.0,1.02627307]
[1759241661031,0.44546428,113200.0,113190.0,1.02627307]
[1759241661231,0.3752,113200.0,113190.0,1.02627307]
[1759241663932,0.0144,113200.0,113190.0,1.02627307]
[1759241664128,1.2898932,113220.0,113210.0,0.0882954]
[1759241664426,1.2898476,113220.0,113210.0,0.13591391]
[1759241664626,1.6898476,113220.0,113210.0,0.04761851]
[1759241664830,2.14479083,113220.0,113210.0,0.04761851]
[1759241665236,2.18279083,113220.0,113210.0,0.04761851]
[1759241665532,2.18279083,113220.0,113210.0,0.07936276]
[1759241665731,2.17079083,113220.0,113210.0,0.03274425]
[1759241666327,2.17079083,113220.0,113210.0,0.02480977]
[1759241666535,0.8754876,113220.0,113210.0,0.02480977]
[1759241666726,1.3161676,113220.0,113210.0,0.03274425]
[1759241667425,1.2901676,113220.0,113210.0,0.03174425]
[1759241667631,1.74471083,113220.0,113210.0,0.03174425]
[1759241667932,2.19271083,113220.0,113210.0,0.02381019]
[1759241668133,2.19271083,113220.0,113200.0,0.07936276]
[1759241668134,0.0882954,113210.0,113200.0,0.03078272]
[1759241668438,0.90363863,113210.0,113200.0,0.00697253]
[1759241668635,1.30363863,113210.0,113200.0,0.00697253]
[1759241668829,0.088311,113190.0,113180.0,0.04761851]
[1759241669030,2.10509423,113190.0,113180.0,0.04761851]
[1759241669535,2.10509423,113190.0,113180.0,0.13593731]
[1759241670237,1.650551,113190.0,113180.0,0.13593731]
[1759241670438,0.809911,113190.0,113180.0,0.13593731]
[1759241670739,1.5622,113190.0,113180.0,0.99048054]
[1759241670935,0.7216,113190.0,113180.0,0.99048054]
[1759241671238,1.2897086,113200.0,113190.0,0.088311]
[1759241671431,1.2897086,113200.0,113190.0,0.13591489]
[1759241671640,0.4491086,113200.0,113190.0,0.13591489]
[1759241671833,1.27324365,113200.0,113190.0,0.13591489]
[1759241672234,0.52134685,113200.0,113190.0,0.15180234]
[1759241672739,1.28360365,113200.0,113190.0,0.15180234]
[1759241672939,1.30460365,113200.0,113190.0,0.15180234]
[1759241673240,0.0314,113200.0,113190.0,1.00634557]
[1759241673541,0.031,113200.0,113190.0,1.00634557]
[1759241673831,0.0314,113200.0,113190.0,1.30365423]
[1759241674037,0.031,113200.0,113190.0,1.38246625]
[1759241674240,0.3616,113220.0,113210.0,0.0882956]
[1759241674438,1.20212,113220.0,113210.0,0.13588554]
[1759241674634,0.0008,113220.0,113210.0,0.13588554]
[1759241674939,0.0008,113220.0,113210.0,1.00629208]
[1759241675144,1.30996932,113230.0,113220.0,0.0882879]
[1759241675436,0.38196722,113230.0,113220.0,0.1358664]
[1759241675638,1.22244722,113230.0,113220.0,0.1358664]
[1759241675834,1.22244722,113230.0,113220.0,0.0882879]
[1759241676740,0.86164722,113230.0,113220.0,0.0882879]
[1759241676935,0.38196722,113230.0,113210.0,0.51254585]
[1759241677138,0.38196722,113230.0,113210.0,0.06345325]
[1759241677139,0.449088,113220.0,113210.0,0.06345325]
[1759241677342,0.449088,113220.0,113210.0,0.0882958]
[1759241677841,0.3608,113220.0,113210.0,0.0882958]
[1759241678341,0.3608,113220.0,113210.0,0.13585167]
[1759241679036,0.4490879,113220.0,113210.0,0.13585157]
[1759241679241,0.4490879,113220.0,113210.0,0.0882957]
[1759241679441,0.4490879,113220.0,113210.0,0.05055418]
[1759241679639,0.4490879,113220.0,113210.0,0.13884998]
[1759241680040,0.4490879,113220.0,113210.0,0.13584998]
[1759241680237,1.30363113,113220.0,113210.0,0.04755418]
[1759241680635,0.0882958,113210.0,113200.0,0.04755418]
[1759241680934,1.74395903,113210.0,113200.0,0.04755418]
[1759241681330,1.2894158,113210.0,113200.0,0.13585778]
[1759241682140,1.20108,113210.0,113200.0,0.13585778]
[1759241682536,0.3612,113210.0,113200.0,0.13585778]
[1759241682735,1.2897758,113210.0,113200.0,0.13585778]
[1759241683141,1.2893758,113210.0,113200.0,0.13585778]
[1759241683338,0.3662,113210.0,113200.0,0.13585778]
[1759241683541,1.20604,113210.0,113200.0,0.13585778]
[1759241683841,1.3057358,113210.0,113200.0,0.0883036]
[1759241684043,1.3057358,113210.0,113200.0,0.15175685]
[1759241684339,0.3772,113210.0,113200.0,0.15175685]
[1759241684543,0.0164,113210.0,113200.0,0.94284683]
[1759241684738,0.0164,113210.0,113200.0,1.30364683]
[1759241684939,0.0164,113210.0,113200.0,1.38245885]
[1759241685135,0.01418545,113210.0,113200.0,1.38245885]
[1759241685338,0.0008,113230.0,113220.0,0.0882879]
[1759241685541,0.43947531,113240.0,113230.0,0.0882804]
[1759241685740,0.43947531,113240.0,113230.0,0.59036371]
[1759241686046,0.43947531,113240.0,113230.0,0.4882804]
[1759241686247,0.43987531,113240.0,113230.0,0.4882804]
[1759241687445,0.44487531,113240.0,113230.0,0.4882804]
[1759241687645,0.43987531,113240.0,113230.0,0.4882804]
[1759241687838,0.43987531,113240.0,113230.0,0.4902804]
[1759241688239,0.43987531,113240.0,113230.0,0.53776712]
[1759241688846,0.37010434,113240.0,113230.0,0.53776712]
[1759241689149,0.3612,113240.0,113230.0,0.53776712]
[1759241689347,0.0004,113240.0,113230.0,1.06050326]
[1759241689545,0.37035348,113250.0,113240.0,0.0882726]
[1759241689546,0.36955348,113250.0,113240.0,0.0882726]
[1759241689743,0.00955348,113250.0,113240.0,0.65848372]
[1759241689945,0.36955348,113250.0,113240.0,0.65848372]
[1759241690247,0.36995348,113250.0,113240.0,0.65848372]
[1759241690843,0.37895348,113250.0,113240.0,0.13574758]
[1759241691751,0.3702,113250.0,113240.0,0.65848372]
[1759241692055,0.3702,113250.0,113240.0,0.61100874]
[1759241692244,0.3702,113250.0,113240.0,0.65843696]
[1759241692447,0.0094,113250.0,113240.0,0.13570082]
[1759241692751,0.3702,113250.0,113240.0,0.65843696]
[1759241693354,0.46738027,113250.0,113240.0,0.13570082]
[1759241693751,0.37911547,113250.0,113240.0,0.13570082]
[1759241693948,0.46738027,113250.0,113240.0,0.13570082]
[1759241694150,0.99011641,113250.0,113240.0,0.04742822]
[1759241694451,0.0882726,113240.0,113230.0,0.13570472]
[1759241694656,0.97180874,113240.0,113230.0,0.13570472]
[1759241694845,2.21176874,113240.0,113230.0,0.13570472]
[1759241695045,2.21176874,113240.0,113230.0,0.0882765]
[1759241695247,0.0882804,113230.0,113220.0,0.13571332]
[1759241695456,0.97181654,113230.0,113220.0,0.0882851]
[1759241695657,0.4490804,113230.0,113220.0,0.0882851]
[1759241696552,0.0882882,113220.0,113210.0,0.13572172]
[1759241696854,0.97182434,113220.0,113210.0,0.0882935]
[1759241697249,0.97082434,113220.0,113210.0,0.0882935]
[1759241697453,1.81078434,113220.0,113210.0,0.0882935]
[1759241697655,0.4480882,113220.0,113210.0,0.0882935]
[1759241698048,1.2880482,113220.0,113210.0,0.0882935]
[1759241698558,1.81578434,113220.0,113210.0,0.088296]
[1759241698754,0.088296,113210.0,113200.0,0.13572882]
[1759241698954,0.97183214,113210.0,113200.0,0.16735301]
[1759241699257,0.97183214,113210.0,113200.0,0.11992479]
[1759241699957,1.04071755,113210.0,113200.0,0.11992479]
[1759241700153,1.44071755,113210.0,113200.0,0.12092479]
[1759241700457,1.44071755,113210.0,113200.0,0.03262419]
[1759241700658,1.44071755,113210.0,113200.0,0.001]
[1759241701444,2.28067755,113210.0,113200.0,0.001]
[1759241702858,1.44071755,113210.0,113200.0,0.001]
[1759241703160,2.28067755,113210.0,113200.0,0.001]
[1759241703552,1.44071755,113210.0,113200.0,0.001]
[1759241703751,0.0873116,113190.0,113180.0,0.0883187]
[1759241703952,1.81084774,113190.0,113180.0,0.11994289]
[1759241704170,0.3608,113190.0,113180.0,0.11994289]
[1759241704454,0.4499113,113200.0,113190.0,0.0883116]
[1759241704654,0.3616,113200.0,113190.0,0.0883116]
[1759241704860,0.0008,113200.0,113190.0,1.40347193]
[1759241705155,1.37698141,113210.0,113200.0,0.0883038]
[1759241705352,0.0883038,113200.0,113190.0,0.16735781]
[1759241705551,0.97183994,113200.0,113190.0,0.16735781]
[1759241705954,1.2008,113200.0,113190.0,0.16735781]
[1759241706152,0.51878671,113210.0,113200.0,0.0883038]
[1759241706459,0.42968541,113210.0,113200.0,0.0883038]
[1759241706755,1.35842141,113210.0,113200.0,0.0883038]
[1759241707063,1.35802141,113210.0,113200.0,0.0883038]
[1759241707357,1.04112275,113210.0,113200.0,0.0883038]
[1759241707560,0.0883038,113200.0,113190.0,0.11993099]
[1759241707747,0.97183994,113200.0,113190.0,0.11993099]
[1759241707948,0.4491038,113200.0,113190.0,0.11993099]
[1759241708154,1.2891438,113200.0,113190.0,0.11993099]
[1759241708460,0.4491038,113200.0,113190.0,0.11993099]
[1759241708659,1.2008,113200.0,113190.0,0.11993099]
[1759241708860,1.2178,113200.0,113190.0,0.11993099]
[1759241709061,1.21784,113200.0,113190.0,0.11993099]
[1759241709250,1.21824,113200.0,113190.0,0.11993099]
[1759241709455,0.3612,113200.0,113190.0,0.11993099]
[1759241709654,1.20124,113200.0,113190.0,0.11993099]
[1759241709860,0.3612,113200.0,113190.0,0.11993099]
[1759241710057,0.3612,113200.0,113190.0,1.09009535]
[1759241710058,0.3608,113200.0,113190.0,1.09009535]
[1759241710360,0.3612,113200.0,113190.0,1.05847116]
[1759241710556,1.35882141,113210.0,113200.0,0.0883038]
[1759241710557,0.42968541,113210.0,113200.0,0.0883038]
[1759241710863,1.20084,113220.0,113210.0,0.088296]
[1759241711061,0.3608,113220.0,113210.0,0.61103214]
[1759241711361,0.0004,113220.0,113210.0,1.05846036]
[1759241711559,0.3608,113230.0,113220.0,0.0882882]
[1759241711757,0.3616,113230.0,113220.0,0.65843687]
[1759241711957,0.3608,113230.0,113220.0,0.65843687]
[1759241712358,0.3612,113230.0,113220.0,0.65843687]
[1759241713056,0.3612,113230.0,113220.0,0.13570073]
[1759241713263,0.4494804,113230.0,113220.0,0.13570073]
[1759241713565,0.3612,113230.0,113220.0,0.13570073]
[1759241714558,0.3722,113230.0,113220.0,0.13570073]
[1759241717373,0.4604804,113230.0,113220.0,0.13570073]
[1759241717963,0.3722,113230.0,113220.0,0.13570073]
[1759241718160,1.3003604,113230.0,113220.0,0.13570073]
[1759241718463,1.3003604,113230.0,113220.0,0.07902746]
[1759241718464,1.38321654,113230.0,113220.0,0.07902746]
[1759241718663,0.0882882,113220.0,113210.0,0.03161493]
[1759241718868,0.088296,113210.0,113200.0,0.16732586]
[1759241719069,0.449096,113210.0,113200.0,0.16732586]
[1759241719267,0.97183214,113210.0,113200.0,0.16732586]
[1759241719470,0.449096,113210.0,113200.0,0.11991333]
[1759241719665,1.288936,113210.0,113200.0,0.11991333]
[1759241720470,0.0883038,113200.0,113190.0,0.16733376]
[1759241720665,0.51925249,113200.0,113190.0,0.16733376]
[1759241720867,1.04198863,113200.0,113190.0,0.11992123]
[1759241721065,1.27074869,113200.0,113190.0,0.11992123]
[1759241721259,0.43094869,113200.0,113190.0,0.11992123]
[1759241721459,0.07054869,113200.0,113190.0,1.40345737]
[1759241721671,0.0004,113200.0,113190.0,1.41925497]
[1759241721873,0.0004,113200.0,113190.0,1.37184244]
[1759241722072,0.3658,113220.0,113210.0,0.088296]
[1759241722372,0.0008,113220.0,113210.0,0.61103214]
[1759241722571,0.38113552,113230.0,113220.0,0.0882885]
[1759241722773,0.38193552,113230.0,113220.0,0.65848206]
[1759241722971,0.38113552,113230.0,113220.0,0.65848206]
[1759241723272,0.38153552,113230.0,113220.0,0.65848206]
[1759241723469,0.38153552,113230.0,113220.0,1.05848206]
[1759241723669,0.38153552,113230.0,113220.0,0.53574592]
[1759241723865,0.38153552,113230.0,113220.0,0.13574592]
[1759241724267,0.38153552,113230.0,113220.0,0.0882885]
[1759241724868,0.46981622,113230.0,113220.0,0.0882885]
[1759241725069,0.46981622,113230.0,113220.0,0.13576644]
[1759241725269,0.38153552,113230.0,113220.0,0.13576644]
[1759241725670,0.99255236,113230.0,113220.0,0.04747794]
[1759241725871,1.40355236,113230.0,113220.0,0.0316548]
[1759241726177,0.0882885,113220.0,113210.0,0.16742474]
[1759241726473,1.81158464,113220.0,113210.0,0.0316548]
[1759241726879,1.81158464,113220.0,113210.0,0.1199511]
[1759241727566,2.21158464,113220.0,113210.0,0.0316548]
[1759241727971,2.12829614,113220.0,113210.0,0.0882963]
[1759241728176,2.21658464,113220.0,113210.0,0.11204311]
[1759241728777,1.21156,113220.0,113210.0,0.14369791]
[1759241728982,0.3608,113220.0,113210.0,1.04268724]
[1759241729172,0.3608,113220.0,113210.0,1.09016518]
[1759241729373,0.3612,113220.0,113210.0,1.09016518]
[1759241729578,0.3608,113220.0,113210.0,1.05851038]
[1759241729780,0.3612,113220.0,113210.0,0.53577424]
[1759241730375,0.3612,113220.0,113210.0,1.05851038]
[1759241730781,0.3612,113220.0,113210.0,0.53577424]
[1759241730981,0.3612,113220.0,113210.0,1.05851038]
[1759241731181,0.0004,113220.0,113210.0,1.05851038]
[1759241731387,0.0054,113220.0,113210.0,0.55168415]
[1759241731571,0.0054,113220.0,113210.0,1.43522029]
[1759241731980,0.005,113220.0,113210.0,1.43522029]
[1759241732176,0.0008,113230.0,113220.0,0.0882868]
[1759241732483,0.3608,113240.0,113220.0,0.0882868]
[1759241732484,0.3608,113240.0,113230.0,0.0882807]
[1759241732675,1.20132,113250.0,113240.0,0.0882729]
[1759241732875,1.20132,113250.0,113240.0,0.16742257]
[1759241733073,0.3616,113250.0,113240.0,0.65849884]
[1759241733278,0.0008,113250.0,113240.0,1.89821884]
[1759241733573,0.43146919,113260.0,113250.0,0.0882641]
[1759241733779,0.43226919,113260.0,113250.0,0.64265446]
[1759241733979,0.43226919,113260.0,113250.0,0.61100024]
[1759241734276,0.07146919,113260.0,113250.0,0.65849004]
[1759241735286,0.07146919,113260.0,113250.0,0.61100024]
[1759241735982,0.07146919,113260.0,113250.0,0.65849004]
[1759241736183,0.07146919,113260.0,113250.0,0.61100024]
[1759241736479,0.0008,113260.0,113250.0,1.01100024]
[1759241736680,0.0008,113260.0,113250.0,1.89813004]
[1759241736981,0.01,113260.0,113250.0,1.9139576]
[1759241737189,0.3712,113260.0,113250.0,1.5139576]
[1759241737379,0.3712,113260.0,113250.0,0.97535021]
[1759241737885,0.4594559,113260.0,113250.0,0.13571021]
[1759241738381,0.3712,113260.0,113250.0,0.13571021]
[1759241738785,0.3612,113260.0,113250.0,0.13571021]
[1759241738980,0.3622,113260.0,113250.0,0.13571021]
[1759241739174,0.4504559,113260.0,113250.0,0.04744611]
[1759241739378,0.3612,113260.0,113250.0,0.69007745]
[1759241739682,0.3612,113260.0,113250.0,0.65844595]
[1759241740588,0.3608,113260.0,113250.0,0.65844595]
[1759241740884,0.3612,113260.0,113250.0,0.65844595]
[1759241741487,0.43039006,113270.0,113260.0,0.0882559]
[1759241741688,0.43119006,113270.0,113260.0,0.64261813]
[1759241742081,0.43039006,113270.0,113260.0,0.64261813]
[1759241742285,0.87983816,113270.0,113260.0,0.03162609]
[1759241742484,1.8025743,113270.0,113260.0,0.05534036]
[1759241742982,1.8095743,113270.0,113260.0,0.05534036]
[1759241743182,1.8095743,113270.0,113260.0,0.14359626]
[1759241743383,1.8095743,113270.0,113260.0,0.05534036]
[1759241743592,0.0882559,113260.0,113250.0,0.14360366]
[1759241743889,0.3608,113260.0,113250.0,0.14360366]
[1759241744190,0.3608,113260.0,113250.0,0.6663398]
[1759241744586,0.0004,113260.0,113250.0,1.40342553]
[1759241744782,0.51863916,113270.0,113260.0,0.0882559]
[1759241744978,0.51943916,113270.0,113260.0,0.11986715]
[1759241745291,0.43039006,113270.0,113260.0,0.11986715]
[1759241745484,0.43079006,113270.0,113260.0,0.11196029]
[1759241745684,0.51903816,113270.0,113260.0,0.02370439]
[1759241745886,0.51903816,113270.0,113260.0,0.11196029]
[1759241746585,0.43079006,113270.0,113260.0,0.11196029]
[1759241746789,1.36543816,113270.0,113260.0,0.11196029]
[1759241746991,1.36543816,113270.0,113260.0,0.02370439]
[1759241747291,2.2811743,113270.0,113260.0,0.02370439]
[1759241747494,0.0882558,113260.0,113250.0,0.11196579]
[1759241747793,0.97179194,113260.0,113250.0,0.02370439]
[1759241748094,0.97179194,113260.0,113250.0,0.11196799]
[1759241748286,0.0882637,113250.0,113240.0,0.14358214]
[1759241748482,0.4490637,113250.0,113240.0,0.11197089]
[1759241749891,0.4490637,113250.0,113240.0,0.11597089]
[1759241750303,0.4490637,113250.0,113240.0,0.14758214]
[1759241750490,1.20016,113260.0,113250.0,0.0882622]
[1759241750690,0.3608,113260.0,113250.0,0.11196659]
[1759241750890,1.79580006,113270.0,113260.0,0.0882533]
[1759241751195,0.86819006,113270.0,113260.0,0.0882533]
[1759241751394,1.79579816,113270.0,113260.0,0.0882533]
[1759241751589,1.70715006,113270.0,113260.0,0.11195769]
[1759241751787,1.79579816,113270.0,113260.0,0.02370439]
[1759241752193,0.001,113260.0,113250.0,0.14357344]
[1759241752393,0.3618,113260.0,113250.0,0.11986905]
[1759241752798,0.3618,113260.0,113250.0,0.16731516]
[1759241752999,1.79580226,113270.0,113260.0,0.0882556]
[1759241753193,2.16360226,113270.0,113260.0,0.11198317]
[1759241753598,1.23599006,113270.0,113260.0,0.11198317]
[1759241753797,2.16359776,113270.0,113260.0,0.11198317]
[1759241754099,2.15659776,113270.0,113260.0,0.11198317]
[1759241754299,2.06835006,113270.0,113260.0,0.11198317]
[1759241754594,2.15659776,113270.0,113260.0,0.11198317]
[1759241754798,2.15619776,113270.0,113260.0,0.11198317]
[1759241754999,2.15659776,113270.0,113260.0,0.11198317]
[1759241755199,1.31723776,113270.0,113260.0,0.02372757]
[1759241755392,1.31723776,113270.0,113260.0,0.11986685]
[1759241755599,1.71919776,113270.0,113260.0,0.11986685]
[1759241755799,0.79159006,113270.0,113260.0,0.11986685]
[1759241756195,0.79159006,113270.0,113260.0,0.16731296]
[1759241756395,0.79859006,113270.0,113260.0,0.16731296]
[1759241756601,0.79859006,113270.0,113260.0,0.62164066]
[1759241756800,0.07699006,113270.0,113260.0,0.16731296]
[1759241756998,0.07699006,113270.0,113260.0,0.13570171]
[1759241757306,0.07699006,113270.0,113260.0,0.99002941]
[1759241757501,0.07659006,113270.0,113260.0,0.99002941]
[1759241757806,0.07699006,113270.0,113260.0,0.99002941]
[1759241758500,0.007,113270.0,113260.0,1.3033833]
[1759241758702,0.0074,113270.0,113260.0,2.20602066]
[1759241758900,0.0074,113270.0,113260.0,1.36670066]
[1759241759106,0.007,113270.0,113260.0,1.84518066]
[1759241759304,0.4564477,113270.0,113260.0,0.11084926]
[1759241759502,2.1500554,113270.0,113260.0,0.0475319]
[1759241759803,2.1500554,113270.0,113260.0,0.03169123]
[1759241759998,2.17027038,113270.0,113260.0,0.02376937]
[1759241760200,0.0882557,113260.0,113230.0,0.0475319]
[1759241760502,0.3608,113240.0,113230.0,0.135811]
[1759241760904,1.20008,113240.0,113230.0,0.135811]
[1759241761199,0.3612,113240.0,113230.0,0.135811]
[1759241761405,0.0004,113240.0,113230.0,0.91239646]
[1759241761608,0.42992229,113250.0,113240.0,0.0882716]
[1759241761801,0.42992229,113250.0,113240.0,0.13584989]
[1759241762100,0.06912229,113250.0,113240.0,0.9425993]
[1759241762306,1.20088,113260.0,113250.0,0.0882638]
[1759241762494,1.20088,113260.0,113250.0,0.13585252]
[1759241762695,0.3616,113260.0,113250.0,0.13585252]
[1759241762904,1.289136,113260.0,113250.0,0.13585252]
[1759241763104,1.20088,113260.0,113250.0,0.13585252]
[1759241763495,1.289136,113260.0,113250.0,0.13585252]
[1759241764096,1.289136,113260.0,113250.0,0.04758872]
[1759241764309,2.1434637,113260.0,113250.0,0.04758872]
[1759241764913,0.0882639,113250.0,113240.0,0.13586032]
[1759241765113,0.4490639,113250.0,113240.0,0.13586032]
[1759241765315,0.3608,113250.0,113240.0,0.13586032]
[1759241765711,0.43187073,113250.0,113240.0,0.13586032]
[1759241765912,1.27115073,113250.0,113240.0,0.5425993]
[1759241766316,0.07147073,113250.0,113240.0,0.9425993]
[1759241766812,0.0004,113250.0,113240.0,2.1426793]
[1759241767023,0.0018,113260.0,113240.0,2.1426793]
[1759241767024,0.001,113260.0,113250.0,0.0882637]
[1759241767317,0.001,113260.0,113250.0,0.60602702]
[1759241767517,0.4498482,113270.0,113250.0,1.00602282]
[1759241767717,0.4498482,113270.0,113260.0,0.04757479]
[1759241768311,0.4498482,113270.0,113260.0,0.13583089]
[1759241769313,0.3616,113270.0,113260.0,0.13583089]
[1759241769514,1.20084,113270.0,113260.0,0.13583089]
[1759241769813,0.51997471,113270.0,113260.0,0.13583089]
[1759241770311,0.52697471,113270.0,113260.0,0.04757479]
[1759241770520,0.52697471,113270.0,113260.0,0.13583079]
[1759241770720,0.43872651,113270.0,113260.0,0.13583079]
[1759241771315,0.52697471,113270.0,113260.0,0.13582641]
[1759241771714,0.43872651,113270.0,113260.0,0.13582641]
[1759241773819,0.43872651,113270.0,113260.0,0.59015411]
[1759241774324,0.43872651,113270.0,113260.0,0.5425837]
[1759241774519,0.52617471,113270.0,113260.0,0.088256]
[1759241774818,0.52657471,113270.0,113260.0,0.088256]
[1759241775210,0.52657471,113270.0,113250.0,0.449057]
[1759241775416,0.52657471,113270.0,113260.0,0.0882561]
[1759241775716,0.07752651,113270.0,113260.0,0.0882561]
[1759241776619,0.0882561,113260.0,113250.0,0.088257]
[1759241776819,0.4490561,113260.0,113240.0,0.0882659]
[1759241777025,0.0882639,113250.0,113240.0,0.0882659]
[1759241777324,1.19992,113260.0,113250.0,0.0882647]
[1759241777522,1.20008,113260.0,113250.0,0.0882647]
[1759241777722,0.83916,113260.0,113250.0,0.5425924]
[1759241777924,1.35974041,113270.0,113250.0,0.0882647]
[1759241778226,0.3612,113260.0,113250.0,0.0882647]
[1759241778725,0.3612,113260.0,113250.0,0.9425924]
[1759241778926,0.0004,113260.0,113250.0,0.9425924]
[1759241779127,1.35829441,113270.0,113260.0,0.0882557]
[1759241779420,1.35829881,113270.0,113260.0,0.0882557]
[1759241779618,1.35909881,113270.0,113260.0,0.0882557]
[1759241779818,1.27084651,113270.0,113260.0,0.0882557]
[1759241780023,1.35909441,113270.0,113260.0,0.0882557]
[1759241780519,1.27788651,113270.0,113260.0,0.0882557]
[1759241780922,1.36613441,113270.0,113260.0,0.0882557]
[1759241781324,1.36613441,113270.0,113250.0,0.0882596]
[1759241781627,0.4490556,113260.0,113250.0,0.0882596]
[1759241781822,0.4490556,113260.0,113230.0,0.9916879]
[1759241781823,0.4490556,113260.0,113240.0,0.0882666]
[1759241782024,0.4490556,113260.0,113250.0,0.0882634]
[1759241782631,1.20052,113260.0,113250.0,0.0882634]
[1759241783030,1.2887756,113260.0,113250.0,0.0882634]
[1759241783623,0.3608,113260.0,113250.0,0.0882634]
[1759241783924,0.3618,113260.0,113250.0,0.0882634]
[1759241784321,0.3612,113260.0,113250.0,0.5425911]
[1759241784522,0.3608,113260.0,113250.0,0.5425911]
[1759241784933,0.3612,113260.0,113250.0,0.5425911]
[1759241785133,0.3612,113260.0,113250.0,0.0882634]
[1759241785725,0.4494597,113260.0,113250.0,0.0882634]
[1759241785931,0.0882634,113250.0,113240.0,0.0882682]
[1759241786230,0.4490634,113250.0,113240.0,0.0882682]
[1759241786432,0.3608,113250.0,113240.0,0.0882682]
[1759241786735,0.449461,113260.0,113250.0,0.0882634]
[1759241787134,0.3612,113260.0,113250.0,0.0882634]
[1759241787328,1.20036,113260.0,113250.0,0.0882634]
[1759241787636,0.3612,113260.0,113250.0,0.0882634]
[1759241787926,0.3608,113260.0,113250.0,0.0882634]
[1759241788126,0.3612,113260.0,113250.0,0.0882634]
[1759241789029,0.4490556,113260.0,113250.0,0.0882634]
[1759241789235,0.4494556,113260.0,113250.0,0.0882634]
[1759241789431,0.4504556,113260.0,113240.0,0.0882679]
[1759241789631,0.4504556,113260.0,113250.0,0.0882634]
[1759241790126,0.3622,113260.0,113250.0,0.0882634]
[1759241790631,0.3612,113260.0,113250.0,0.0882634]
[1759241790828,0.4494556,113260.0,113240.0,0.0922636]
[1759241791136,0.4490634,113250.0,113240.0,0.004]
[1759241791635,1.2886193,113260.0,113250.0,0.088263]
[1759241792535,1.6886155,113260.0,113250.0,0.088263]
[1759241792931,1.6886155,113260.0,113250.0,0.0882633]
[1759241793332,1.60136,113260.0,113250.0,0.0882633]
[1759241793528,0.3622,113260.0,113250.0,0.0882633]
[1759241793724,1.20136,113260.0,113250.0,0.0882633]
[1759241793930,0.4494554,113260.0,113250.0,0.0882633]
[1759241795833,0.0004,113260.0,113250.0,0.0882633]